bitfinex-derivatives/quotes_BTCF0:USTF0_20250119
["timestamp","ask_amount","ask_price","bid_price","bid_amount"]
[1737305986484,0.62917305,105030.0,105020.0,0.56760246]
[1737305986780,0.82891976,105030.0,105020.0,0.226224]
[1737305988085,0.6577531,105030.0,105020.0,0.45380603]
[1737305989087,0.6577531,105030.0,105020.0,0.45380615]
[1737305989476,0.6577531,105030.0,105020.0,0.44903598]
[1737305989682,0.6577531,105030.0,105020.0,0.44903599]
[1737305989883,0.6577531,105030.0,105020.0,0.44605464]
[1737305990596,0.6577531,105030.0,105020.0,0.39838064]
[1737305990796,0.71469239,105030.0,105010.0,0.57927461]
[1737305991092,0.08205783,105020.0,105010.0,0.58225596]
[1737305992286,0.25355825,105020.0,105010.0,0.58225596]
[1737305993088,0.25355825,105020.0,105010.0,0.41145735]
[1737305994996,0.25355825,105020.0,105010.0,0.408476]
[1737305995206,0.25355825,105020.0,105010.0,0.41145736]
[1737305996490,0.25355825,105020.0,105010.0,0.41622753]
[1737305998499,0.26288486,105020.0,105010.0,0.41622753]
[1737305998890,0.26288486,105020.0,105010.0,0.73622753]
[1737305999097,0.26288486,105020.0,105010.0,1.54367059]
[1737305999098,0.20569819,105020.0,105010.0,1.54367059]
[1737305999300,0.20569819,105020.0,105010.0,1.18287059]
[1737306000101,0.53211436,105020.0,105010.0,1.18287059]
[1737306000302,0.53211436,105020.0,105010.0,0.60300956]
[1737306000995,0.53211436,105020.0,105010.0,0.60301]
[1737306003203,0.56646335,105020.0,105010.0,0.60301]
[1737306004098,0.60081234,105020.0,105010.0,0.66002301]
[1737306004297,0.63611234,105020.0,105010.0,0.61234701]
[1737306005002,0.27531234,105020.0,105010.0,0.61234701]
[1737306005198,0.24096335,105020.0,105010.0,0.61234701]
[1737306005405,0.24096335,105020.0,105010.0,0.66002501]
[1737306005604,0.26954179,105020.0,105010.0,0.54629526]
[1737306006507,0.26954179,105020.0,105010.0,0.54629513]
[1737306006807,0.26954179,105020.0,105010.0,0.603242]
[1737306007701,0.30389078,105020.0,105010.0,0.603242]
[1737306008408,0.30389078,105020.0,105010.0,0.60324215]
[1737306009109,0.66469078,105020.0,105010.0,0.72645461]
[1737306009911,0.63034179,105020.0,105010.0,0.72645461]
[1737306010212,0.66469078,105020.0,105010.0,0.72645461]
[1737306010597,0.66469078,105020.0,105010.0,0.49864245]
[1737306010799,0.63034179,105020.0,105010.0,0.49864245]
[1737306011598,0.67230078,105020.0,105010.0,0.49864245]
[1737306012406,0.63795179,105020.0,105010.0,0.4986427]
[1737306012611,0.66656002,105020.0,105010.0,0.5463207]
[1737306013814,0.60941813,105020.0,105010.0,0.6032424]
[1737306014017,0.64376712,105020.0,105010.0,0.6032424]
[1737306014215,0.60941813,105020.0,105010.0,0.6032424]
[1737306014913,0.60941813,105020.0,105010.0,0.60324253]
[1737306015509,0.63804479,105020.0,105010.0,0.60324253]
[1737306016402,0.63804479,105020.0,105010.0,0.60324252]
[1737306017110,0.63804479,105020.0,105010.0,0.55556452]
[1737306018320,0.67239378,105020.0,105010.0,0.55556452]
[1737306018918,0.63804479,105020.0,105010.0,0.55556452]
[1737306019507,0.63804479,105020.0,105010.0,0.56152783]
[1737306020217,0.5683958,105020.0,105010.0,0.60920583]
[1737306020413,0.2075958,105020.0,105010.0,0.68090583]
[1737306020621,0.24194479,105020.0,105010.0,0.68090583]
[1737306021008,0.27046002,105020.0,105010.0,0.45309296]
[1737306021315,0.23611103,105020.0,105010.0,0.45309296]
[1737306021518,0.27046002,105020.0,105010.0,0.45309296]
[1737306022115,0.27046002,105020.0,105010.0,0.81389296]
[1737306022315,0.31683308,105020.0,105010.0,0.9848674]
[1737306022512,0.31683308,105020.0,105010.0,0.98486685]
[1737306022714,0.22548348,105020.0,105010.0,1.01921584]
[1737306022914,0.22548348,105020.0,105010.0,1.0877209]
[1737306023814,0.22548348,105020.0,105010.0,1.08793719]
[1737306024015,0.15056145,105020.0,105010.0,1.14477491]
[1737306024214,0.18491044,105020.0,105010.0,1.11042592]
[1737306024420,0.23258444,105020.0,105010.0,1.07920457]
[1737306024614,0.23258444,105020.0,105010.0,0.63322657]
[1737306025023,0.26693343,105020.0,105010.0,0.63322657]
[1737306025224,0.23258444,105020.0,105010.0,0.63322657]
[1737306025524,0.26693343,105020.0,105010.0,0.63322657]
[1737306026226,0.2954824,105020.0,105010.0,0.57635136]
[1737306026429,0.2954824,105020.0,105010.0,0.53995136]
[1737306026612,0.2954824,105020.0,105010.0,0.53398857]
[1737306027625,0.35118983,105020.0,105010.0,0.32775162]
[1737306027817,0.74908983,105020.0,105010.0,0.32775162]
[1737306029316,0.67417911,105020.0,105010.0,0.72650073]
[1737306030422,0.67417911,105020.0,105010.0,0.72650164]
[1737306030723,0.67417911,105020.0,105010.0,0.72173085]
[1737306030921,0.65783435,105020.0,105010.0,0.72173085]
[1737306032323,0.65783435,105020.0,105010.0,0.72173082]
[1737306034317,0.65783435,105020.0,105010.0,0.71874911]
[1737306034529,0.65022435,105020.0,105010.0,0.72173079]
[1737306034729,0.65022435,105020.0,105010.0,0.72650149]
[1737306036721,0.65022435,105020.0,105010.0,0.73246486]
[1737306036922,0.65022435,105020.0,105010.0,0.72650149]
[1737306038422,0.65022435,105020.0,105010.0,0.72650145]
[1737306041225,0.28942435,105020.0,105010.0,0.72650145]
[1737306041736,0.28942435,105020.0,105010.0,0.72173078]
[1737306044837,0.14645995,105020.0,105010.0,0.32298167]
[1737306046337,0.14645995,105020.0,105010.0,0.32]
[1737306046539,0.14645995,105020.0,105010.0,0.32298165]
[1737306047027,0.14645995,105020.0,105010.0,0.32775216]
[1737306047232,0.14645995,105020.0,105010.0,0.32298165]
[1737306049636,0.31797509,105020.0,105010.0,0.32298165]
[1737306049835,0.31797509,105020.0,105010.0,0.32775226]
[1737306050840,0.28938606,105020.0,105010.0,0.55556442]
[1737306052045,0.28938606,105020.0,105010.0,0.72639221]
[1737306052844,0.30574548,105020.0,105010.0,0.72639221]
[1737306054744,0.30574548,105020.0,105010.0,0.55556442]
[1737306057534,0.23428916,105020.0,105010.0,0.60324242]
[1737306058344,0.23428916,105020.0,105010.0,0.60324217]
[1737306058845,0.23428916,105020.0,105010.0,0.60920526]
[1737306060048,0.23428916,105020.0,105010.0,0.3813931]
[1737306060839,0.23428916,105020.0,105010.0,0.37543001]
[1737306061349,0.23428916,105020.0,105010.0,0.3813931]
[1737306061644,0.23428916,105020.0,105010.0,0.4480931]
[1737306061948,0.23428916,105020.0,105010.0,0.44809305]
[1737306063852,0.23428916,105020.0,105010.0,1.26252735]
[1737306066952,0.09136305,105020.0,105010.0,0.84106228]
[1737306067152,0.26287819,105020.0,105010.0,0.56542569]
[1737306067744,0.26287819,105020.0,105010.0,0.56542577]
[1737306068047,0.09136305,105020.0,105010.0,0.56542577]
[1737306068249,0.13773692,105020.0,105010.0,0.56542577]
[1737306068553,0.49853692,105020.0,105010.0,0.56542577]
[1737306069051,0.49853692,105020.0,105010.0,0.61310377]
[1737306069256,0.13773692,105020.0,105010.0,0.61310377]
[1737306069754,0.09136305,105020.0,105010.0,0.61310377]
[1737306070257,0.09136305,105020.0,105010.0,0.56542577]
[1737306070955,0.12571937,105020.0,105010.0,0.56542577]
[1737306071159,0.48651937,105020.0,105010.0,0.56542577]
[1737306071651,0.52087569,105020.0,105010.0,0.48017606]
[1737306071854,0.047678,105010.0,105000.0,0.22795859]
[1737306072047,0.08203932,105000.0,104990.0,0.28459504]
[1737306072246,0.51049564,105000.0,104990.0,0.28936668]
[1737306072452,0.51049564,105000.0,104990.0,0.28459504]
[1737306072849,0.047687,104990.0,104980.0,0.3413567]
[1737306073054,0.47719964,104990.0,104980.0,0.3413567]
[1737306073253,0.047696,104970.0,104960.0,0.85339176]
[1737306073454,0.44285232,104970.0,104960.0,0.85339176]
[1737306073660,0.47720864,104970.0,104960.0,0.85339176]
[1737306073853,0.47720864,104970.0,104950.0,0.8038421]
[1737306074054,0.11641364,104960.0,104950.0,0.8038421]
[1737306074557,0.11641364,104960.0,104950.0,0.7704993]
[1737306074757,0.11641364,104960.0,104950.0,0.7352993]
[1737306074957,0.46091394,104960.0,104950.0,0.3419993]
[1737306075355,0.57501657,104960.0,104930.0,0.47774233]
[1737306075558,0.04771,104940.0,104930.0,0.48967654]
[1737306076155,0.04771,104940.0,104930.0,0.52846284]
[1737306076552,0.04771,104940.0,104930.0,0.52838465]
[1737306076753,0.04771,104940.0,104930.0,0.48067165]
[1737306077061,0.04771,104940.0,104930.0,0.46873744]
[1737306077557,0.10012294,104940.0,104930.0,0.42995114]
[1737306077763,0.10012294,104940.0,104920.0,0.37558889]
[1737306077764,0.047715,104930.0,104920.0,0.37558889]
[1737306077958,0.047719,104920.0,104910.0,0.37558889]
[1737306078154,0.05241294,104920.0,104900.0,0.50407935]
[1737306078356,0.05241294,104920.0,104900.0,0.50623685]
[1737306078357,0.047724,104910.0,104900.0,0.50623685]
[1737306078961,0.047724,104910.0,104900.0,0.54503343]
[1737306079661,0.047724,104910.0,104900.0,0.54503401]
[1737306080655,0.047724,104910.0,104900.0,0.53309658]
[1737306082166,0.047724,104910.0,104900.0,0.48543441]
[1737306083755,0.10013694,104910.0,104900.0,0.48543441]
[1737306083955,0.10013694,104910.0,104900.0,0.48260335]
[1737306084165,0.10013694,104910.0,104900.0,0.44910335]
[1737306084670,0.10013694,104910.0,104900.0,0.41030677]
[1737306085967,0.10013694,104910.0,104900.0,0.39854997]
[1737306086162,0.047724,104910.0,104900.0,0.45096291]
[1737306086368,0.047724,104910.0,104900.0,0.48556291]
[1737306087868,0.047724,104910.0,104900.0,0.53329091]
[1737306088063,0.047724,104910.0,104900.0,0.48087797]
[1737306092476,0.047724,104910.0,104900.0,0.4332158]
[1737306096770,0.20476486,104920.0,104910.0,0.047724]
[1737306096977,0.17146486,104920.0,104910.0,0.10013694]
[1737306097272,0.17146486,104920.0,104910.0,0.047724]
[1737306097674,0.17146486,104920.0,104910.0,0.10013694]
[1737306098176,0.16182263,104920.0,104910.0,0.047724]
[1737306099078,0.21423557,104920.0,104910.0,0.0507084]
[1737306099475,0.16182263,104920.0,104910.0,0.0507084]
[1737306100169,0.16182263,104920.0,104910.0,0.05070846]
[1737306101175,0.19034829,104920.0,104910.0,0.05070846]
[1737306101376,0.19034829,104920.0,104910.0,0.047724]
[1737306101570,0.19034829,104920.0,104910.0,0.05548339]
[1737306101773,0.19034829,104920.0,104910.0,0.05070838]
[1737306101967,0.26567467,104920.0,104910.0,0.05070838]
[1737306102172,0.047724,104910.0,104900.0,0.49542293]
[1737306102372,0.047724,104910.0,104900.0,0.50318247]
[1737306102573,0.047724,104910.0,104900.0,0.45076953]
[1737306102977,0.19029767,104910.0,104900.0,0.45076953]
[1737306103282,0.19029767,104910.0,104900.0,0.50318247]
[1737306103580,0.19029767,104910.0,104900.0,0.50318246]
[1737306103881,0.16187578,104910.0,104900.0,0.50318246]
[1737306104081,0.21428872,104910.0,104900.0,0.36855953]
[1737306105181,0.16187578,104910.0,104900.0,0.36855953]
[1737306105683,0.19029767,104910.0,104900.0,0.36855953]
[1737306106580,0.36183381,104910.0,104900.0,0.36855953]
[1737306107077,0.36183381,104910.0,104900.0,0.42097247]
[1737306107078,0.31410981,104910.0,104900.0,0.42097247]
[1737306107281,0.23563956,104940.0,104920.0,0.047717]
[1737306107479,0.19983956,104940.0,104930.0,0.46092794]
[1737306107679,0.19983956,104940.0,104930.0,0.48062092]
[1737306107986,0.03743001,104950.0,104940.0,0.04771]
[1737306108288,0.03743001,104950.0,104940.0,0.05069406]
[1737306108677,0.03743001,104950.0,104940.0,0.41149406]
[1737306110581,0.15163757,104950.0,104940.0,0.41149406]
[1737306112183,0.15020756,104950.0,104940.0,0.463907]
[1737306112989,0.11420756,104950.0,104940.0,0.463907]
[1737306113290,0.11420756,104950.0,104940.0,0.50458028]
[1737306113592,0.15958316,104960.0,104950.0,0.047706]
[1737306113790,0.15958316,104960.0,104950.0,0.46867628]
[1737306114585,0.15000756,104960.0,104950.0,0.46867628]
[1737306115187,0.15000756,104960.0,104950.0,0.48060796]
[1737306115485,0.11420756,104960.0,104950.0,0.48060537]
[1737306115789,0.21880756,104970.0,104960.0,0.047701]
[1737306115989,0.21880756,104970.0,104960.0,0.46866899]
[1737306116895,0.1046,104970.0,104960.0,0.41625605]
[1737306117091,0.1046,104970.0,104960.0,0.408501]
[1737306122397,0.1046,104970.0,104960.0,0.46091394]
[1737306122589,0.0707,104970.0,104960.0,0.46091394]
[1737306124398,0.0707,104970.0,104960.0,0.48059815]
[1737306124797,0.00142947,104980.0,104970.0,0.047696]
[1737306124989,0.00142947,104980.0,104970.0,0.46389135]
[1737306126009,0.00142947,104980.0,104970.0,0.41147841]
[1737306129706,0.00142947,104980.0,104970.0,0.408496]
[1737306130795,0.00142947,104980.0,104970.0,0.46090894]
[1737306130995,0.00142947,104980.0,104970.0,0.46389133]
[1737306131398,0.1019,104990.0,104980.0,0.047692]
[1737306131595,0.1019,104990.0,104980.0,0.46090494]
[1737306131796,0.1019,104990.0,104980.0,0.4638871]
[1737306132003,0.1019,104990.0,104980.0,0.47581531]
[1737306132203,0.21363905,105000.0,104980.0,0.46090494]
[1737306132406,0.21363905,105000.0,104990.0,0.41321294]
[1737306132596,0.21363905,105000.0,104990.0,0.46089994]
[1737306133002,0.1,105000.0,104990.0,0.46089994]
[1737306134107,0.1,105000.0,104990.0,0.408487]
[1737306134705,0.15241294,105000.0,104990.0,0.408487]
[1737306135008,0.20009594,105000.0,104990.0,0.408487]
[1737306135612,0.147683,105000.0,104990.0,0.408487]
[1737306136304,0.26133649,105000.0,104990.0,0.408487]
[1737306136506,0.26133649,105000.0,104990.0,0.047687]
[1737306137406,0.147683,105000.0,104990.0,0.047687]
[1737306137622,0.047689,104990.0,104980.0,0.04769]
[1737306137908,0.13250194,104990.0,104980.0,0.04769]
[1737306138109,0.0324,104990.0,104980.0,0.46090294]
[1737306138311,0.0324,104990.0,104980.0,0.4638851]
[1737306138513,0.0324,104990.0,104980.0,0.47283106]
[1737306139212,0.0324,104990.0,104980.0,0.48058448]
[1737306139808,0.0324,104990.0,104980.0,0.42817154]
[1737306140010,0.080087,104990.0,104980.0,0.41624342]
[1737306140207,0.149187,104990.0,104980.0,0.41624342]
[1737306140407,0.1015,104990.0,104980.0,0.41624342]
[1737306140611,0.1015,104990.0,104980.0,0.46865636]
[1737306140809,0.1015,104990.0,104980.0,0.46865632]
[1737306141011,0.1015,104990.0,104980.0,0.41624338]
[1737306141710,0.1015,104990.0,104980.0,0.05544338]
[1737306144720,0.1015,104990.0,104980.0,0.0554439]
[1737306146317,0.149187,104990.0,104980.0,0.0554439]
[1737306146817,0.26333082,104990.0,104980.0,0.0554439]
[1737306147215,0.26333082,104990.0,104980.0,0.05544405]
[1737306147910,0.67654376,104990.0,104980.0,0.00775405]
[1737306148215,0.047692,104980.0,104960.0,0.55861632]
[1737306148414,0.0662,104970.0,104960.0,0.55861632]
[1737306148618,0.0662,104970.0,104960.0,0.91941632]
[1737306149414,0.18034382,104970.0,104960.0,0.46091294]
[1737306149717,0.18034382,104970.0,104960.0,0.10011294]
[1737306150222,0.18034382,104970.0,104960.0,0.4085]
[1737306150518,0.14774382,104970.0,104960.0,0.46091294]
[1737306151515,0.14774382,104970.0,104960.0,0.47284348]
[1737306152524,0.14774382,104970.0,104960.0,0.46091294]
[1737306152725,0.14774382,104970.0,104960.0,0.47284344]
[1737306153323,0.0336,104970.0,104960.0,0.69928208]
[1737306153522,0.0336,104970.0,104960.0,0.68735155]
[1737306154120,0.0336,104970.0,104960.0,0.69928213]
[1737306154718,0.14774382,104970.0,104960.0,0.69928213]
[1737306155222,0.14774382,104970.0,104960.0,0.69928206]
[1737306155719,0.11414382,104970.0,104960.0,0.69928206]
[1737306155923,0.11414382,104970.0,104960.0,0.73218206]
[1737306156123,0.14267977,104970.0,104960.0,0.50574345]
[1737306157429,0.14267977,104970.0,104960.0,0.53634345]
[1737306157722,0.17577977,104980.0,104970.0,0.047696]
[1737306157915,0.17577977,104980.0,104970.0,0.408496]
[1737306158115,0.17577977,104980.0,104970.0,0.41326784]
[1737306158315,0.17577977,104980.0,104970.0,0.46568078]
[1737306158519,0.17577977,104980.0,104970.0,0.4656808]
[1737306159824,0.17577977,104980.0,104970.0,0.41326786]
[1737306160026,0.17577977,104980.0,104970.0,0.41625023]
[1737306161717,0.17577977,104980.0,104970.0,0.46866317]
[1737306162123,0.17577977,104980.0,104970.0,0.48059266]
[1737306162523,0.17577977,104980.0,104970.0,0.49967937]
[1737306162724,0.25686632,104980.0,104970.0,0.49967937]
[1737306163125,0.25686632,104980.0,104970.0,0.49967903]
[1737306164024,0.17948655,104990.0,104970.0,0.72611764]
[1737306164224,0.17948655,104990.0,104980.0,0.46090494]
[1737306164422,0.17948655,104990.0,104980.0,0.46865898]
[1737306165130,0.17948655,104990.0,104980.0,0.49967314]
[1737306165627,0.17948655,104990.0,104980.0,0.72611175]
[1737306165827,0.11418655,104990.0,104980.0,0.72611175]
[1737306166025,0.11418655,104990.0,104980.0,0.78911175]
[1737306166729,0.00318,104990.0,104980.0,1.07358946]
[1737306167328,0.00318,104990.0,104980.0,1.01058946]
[1737306168025,0.00318,104990.0,104980.0,1.06901225]
[1737306168221,0.00318,104990.0,104980.0,1.07857731]
[1737306168428,0.00318,104990.0,104980.0,1.07857643]
[1737306169228,0.00318,104990.0,104980.0,0.50923732]
[1737306170519,0.00318,104990.0,104980.0,1.02126968]
[1737306171724,0.14585977,104990.0,104980.0,0.50923732]
[1737306175432,0.26003413,104990.0,104980.0,0.50923732]
[1737306176124,0.29133413,104990.0,104980.0,0.50923732]
[1737306176531,0.26003413,104990.0,104980.0,0.50923732]
[1737306178827,0.26003413,104990.0,104980.0,0.47822316]
[1737306179029,0.00318,104990.0,104980.0,0.73678973]
[1737306180425,0.00318,104990.0,104980.0,0.77385356]
[1737306180621,0.00318,104990.0,104980.0,0.80495356]
[1737306181735,0.27657436,105000.0,104990.0,0.047687]
[1737306182029,0.21417436,105000.0,104990.0,0.50562885]
[1737306182823,0.1,105000.0,104990.0,1.01766121]
[1737306184229,0.1,105000.0,104990.0,1.07372275]
[1737306184623,0.1,105000.0,104990.0,1.07396145]
[1737306185232,0.1,105000.0,104990.0,1.02154851]
[1737306185430,0.1658,105000.0,104990.0,1.02130981]
[1737306185820,0.21821294,105000.0,104990.0,1.02130981]
[1737306186133,0.63142588,105000.0,104990.0,0.57584706]
[1737306186434,0.76937571,105000.0,104990.0,0.00775316]
[1737306186628,0.82178865,105000.0,104980.0,0.3608]
[1737306186825,0.10009994,104990.0,104980.0,0.36676442]
[1737306187029,0.46089994,104990.0,104970.0,0.92039647]
[1737306187229,0.46089994,104990.0,104970.0,0.95737684]
[1737306187430,0.46089994,104990.0,104970.0,0.56556104]
[1737306188235,0.46089994,104990.0,104970.0,0.05365957]
[1737306188932,0.46089994,104990.0,104970.0,0.05365995]
[1737306189630,0.67862497,104980.0,104960.0,0.047701]
[1737306189932,0.05241294,104970.0,104960.0,0.05366618]
[1737306190133,0.14781294,104970.0,104960.0,0.05366618]
[1737306190634,0.56102588,104970.0,104950.0,0.27512876]
[1737306190929,0.46091394,104960.0,104950.0,0.05367077]
[1737306191132,0.46091394,104960.0,104950.0,0.05367134]
[1737306191334,0.10011394,104960.0,104950.0,0.047705]
[1737306191541,0.46091394,104960.0,104950.0,0.047705]
[1737306192328,0.63224306,104960.0,104950.0,0.047705]
[1737306192632,0.27144306,104960.0,104950.0,0.047705]
[1737306193029,0.21903012,104960.0,104950.0,0.047705]
[1737306193828,0.21419077,104960.0,104950.0,0.047705]
[1737306195241,0.3608,104960.0,104950.0,0.047705]
[1737306197236,0.87984062,104970.0,104940.0,0.41464208]
[1737306197428,0.87984062,104970.0,104960.0,0.047701]
[1737306197638,0.77972968,104970.0,104960.0,0.047701]
[1737306197839,0.83214262,104970.0,104960.0,0.047701]
[1737306198034,0.87983862,104970.0,104960.0,0.047701]
[1737306198843,0.56592223,104970.0,104960.0,0.047701]
[1737306204748,0.047701,104960.0,104950.0,0.047702]
[1737306204938,0.46091394,104960.0,104950.0,0.05068518]
[1737306205542,0.10011394,104960.0,104950.0,0.05068518]
[1737306207750,0.10011394,104960.0,104950.0,0.047702]
[1737306207953,0.047701,104960.0,104950.0,0.047702]
[1737306208652,0.047701,104960.0,104950.0,0.05068513]
[1737306209345,0.047701,104960.0,104950.0,0.05068511]
[1737306210549,0.57989012,104970.0,104950.0,0.05068511]
[1737306210755,0.62758712,104970.0,104950.0,0.15080005]
[1737306211660,0.26678712,104970.0,104960.0,0.047701]
[1737306211844,0.31920006,104970.0,104960.0,0.047701]
[1737306212044,0.68000006,104970.0,104960.0,0.047701]
[1737306212247,0.68000006,104970.0,104960.0,0.05068399]
[1737306212751,0.68000006,104970.0,104960.0,0.050684]
[1737306212951,0.68000006,104970.0,104960.0,0.047701]
[1737306213357,0.68000006,104970.0,104960.0,0.05068401]
[1737306213858,0.047706,104960.0,104940.0,0.17204398]
[1737306214150,0.047706,104960.0,104940.0,0.17061484]
[1737306214151,0.56631894,104950.0,104940.0,0.17061484]
[1737306214746,0.04771,104940.0,104930.0,0.4457526]
[1737306215046,0.46092294,104940.0,104930.0,0.4029761]
[1737306215253,0.46092294,104940.0,104930.0,0.40775012]
[1737306215952,0.46092294,104940.0,104930.0,0.40297607]
[1737306216457,0.5751214,104940.0,104930.0,0.22608662]
[1737306217152,0.5751214,104940.0,104930.0,0.22608659]
[1737306217756,0.52270846,104940.0,104930.0,0.22608659]
[1737306219055,0.52270846,104940.0,104930.0,0.21832884]
[1737306219259,0.52270846,104940.0,104930.0,0.22608659]
[1737306220266,0.5751214,104940.0,104930.0,0.22608659]
[1737306221253,0.58448232,104940.0,104930.0,0.22608659]
[1737306224759,0.53206938,104940.0,104930.0,0.22608659]
[1737306225266,0.53206938,104940.0,104930.0,0.05547175]
[1737306227055,0.53206938,104940.0,104930.0,0.05547163]
[1737306228964,0.53206938,104940.0,104930.0,0.05547178]
[1737306229163,0.53206938,104940.0,104930.0,0.22608662]
[1737306230862,0.53206938,104940.0,104930.0,0.22608651]
[1737306231060,0.53206938,104940.0,104930.0,0.2213126]
[1737306231564,0.53206938,104940.0,104930.0,0.27849951]
[1737306231760,0.53206938,104940.0,104930.0,0.31169951]
[1737306231965,0.67466542,104940.0,104930.0,0.08867173]
[1737306232263,0.31386542,104940.0,104930.0,0.08867173]
[1737306233061,0.31386542,104940.0,104930.0,0.08867116]
[1737306233458,0.17126938,104940.0,104930.0,0.259286]
[1737306233657,0.17126938,104940.0,104930.0,0.25928602]
[1737306233857,0.11419846,104940.0,104930.0,0.70899896]
[1737306234166,0.11419846,104940.0,104930.0,0.65658602]
[1737306234661,0.16190846,104940.0,104930.0,0.65658602]
[1737306234966,0.16190846,104940.0,104930.0,0.29578602]
[1737306235867,0.16190846,104940.0,104930.0,0.30519685]
[1737306236270,0.16190846,104940.0,104930.0,0.66599685]
[1737306236770,0.16190846,104940.0,104930.0,0.30519685]
[1737306237168,0.16190846,104940.0,104930.0,0.29578602]
[1737306238268,0.16190846,104940.0,104930.0,0.65658602]
[1737306239168,0.04771,104940.0,104930.0,0.48597118]
[1737306240871,0.83283336,104950.0,104930.0,0.48597118]
[1737306241069,0.78042042,104950.0,104930.0,0.48597118]
[1737306241665,0.11419846,104940.0,104930.0,0.48597118]
[1737306243274,0.11419846,104940.0,104930.0,1.06907888]
[1737306244768,0.11419846,104940.0,104930.0,1.12149182]
[1737306245371,0.69495504,104950.0,104940.0,0.04771]
[1737306245574,0.69495504,104950.0,104940.0,0.05069353]
[1737306245775,0.69495504,104950.0,104940.0,0.05546714]
[1737306246574,0.69495504,104950.0,104940.0,0.22696399]
[1737306248672,0.69495504,104950.0,104940.0,0.21920685]
[1737306248874,0.69495504,104950.0,104940.0,0.22219035]
[1737306249676,0.74736798,104950.0,104940.0,0.22219035]
[1737306250077,0.69495504,104950.0,104940.0,0.22219035]
[1737306250883,0.72934704,104950.0,104940.0,0.22219035]
[1737306251983,0.36854704,104950.0,104940.0,0.22696396]
[1737306252281,0.72934704,104950.0,104940.0,0.22696396]
[1737306253070,0.72934704,104950.0,104940.0,0.00955396]
[1737306253071,1.06373904,104950.0,104940.0,0.00955396]
[1737306253277,0.047715,104930.0,104920.0,0.28447771]
[1737306253482,0.442907,104930.0,104920.0,0.33861982]
[1737306255686,0.442907,104930.0,104910.0,0.08354366]
[1737306255687,0.047719,104920.0,104910.0,0.08354366]
[1737306255883,0.082111,104920.0,104910.0,0.08354366]
[1737306256774,0.047719,104920.0,104910.0,0.04915166]
[1737306256977,0.11436017,104920.0,104910.0,0.10158333]
[1737306258579,0.11436017,104920.0,104910.0,0.04915166]
[1737306259878,0.16207917,104920.0,104910.0,0.04915166]
[1737306260184,0.047719,104920.0,104910.0,0.04915166]
[1737306260380,0.10015067,104920.0,104910.0,0.04915166]
[1737306260782,0.10015067,104920.0,104910.0,0.00142966]
[1737306260984,0.46095067,104920.0,104910.0,0.00142966]
[1737306261284,0.10015067,104920.0,104910.0,0.00142966]
[1737306262883,0.21451084,104920.0,104910.0,0.00142966]
[1737306263186,0.21451084,104920.0,104910.0,0.00620449]
[1737306263588,0.25231084,104920.0,104910.0,0.00142966]
[1737306263988,0.32361084,104920.0,104910.0,0.00142966]
[1737306265290,0.32361084,104920.0,104910.0,0.00441395]
[1737306267191,0.28851084,104920.0,104910.0,0.00441395]
[1737306267594,0.11436017,104920.0,104910.0,0.10456962]
[1737306267795,0.11436017,104920.0,104910.0,0.10934443]
[1737306268295,0.5324582,104930.0,104910.0,0.06162043]
[1737306268495,0.5324582,104930.0,104920.0,0.117019]
[1737306268796,0.5324582,104930.0,104920.0,0.12000329]
[1737306269991,0.58488987,104930.0,104920.0,0.12000316]
[1737306273394,0.58488987,104930.0,104920.0,0.05070316]
[1737306276984,0.58488987,104930.0,104920.0,0.00298416]
[1737306277184,0.58488987,104930.0,104910.0,0.27740102]
[1737306277185,0.047719,104920.0,104910.0,0.27740102]
[1737306277393,0.10015067,104920.0,104910.0,0.28038526]
[1737306277792,0.10015067,104920.0,104910.0,0.28038528]
[1737306277992,0.46095067,104920.0,104910.0,0.05213592]
[1737306279194,0.46095067,104920.0,104910.0,0.00298426]
[1737306279506,0.60399731,104920.0,104910.0,0.00298426]
[1737306279694,0.63919731,104920.0,104910.0,0.00298444]
[1737306281699,0.047724,104910.0,104900.0,0.71366396]
[1737306281907,0.10015567,104910.0,104900.0,0.71843909]
[1737306282706,0.10015567,104910.0,104900.0,0.35763909]
[1737306283501,0.21459851,104910.0,104900.0,0.72334387]
[1737306283701,0.21459851,104910.0,104900.0,0.723344]
[1737306285494,0.57539851,104910.0,104900.0,0.675619]
[1737306286004,0.21459851,104910.0,104900.0,0.675619]
[1737306286309,0.21459851,104910.0,104900.0,0.31054309]
[1737306286504,0.57539851,104910.0,104900.0,0.31054309]
[1737306286905,0.21459851,104910.0,104900.0,0.31054309]
[1737306287203,0.21459851,104910.0,104900.0,0.30576783]
[1737306287998,0.16216684,104910.0,104900.0,0.30576783]
[1737306288901,0.19658519,104910.0,104900.0,0.30576783]
[1737306290701,0.19658519,104910.0,104900.0,0.0768896]
[1737306290897,0.56702949,104910.0,104900.0,0.0768896]
[1737306291197,0.60144784,104910.0,104900.0,0.0049896]
[1737306291399,0.047728,104900.0,104890.0,0.36828808]
[1737306291605,0.08214635,104900.0,104890.0,0.36828808]
[1737306291997,0.44294635,104900.0,104890.0,0.36828808]
[1737306292408,0.4773647,104900.0,104890.0,0.36828808]
[1737306292614,0.08214635,104900.0,104890.0,0.33348808]
[1737306292801,0.10019154,104900.0,104890.0,0.28575508]
[1737306293703,0.10019154,104900.0,104890.0,0.28873981]
[1737306293910,0.21450476,104900.0,104890.0,0.23175917]
[1737306294105,0.21450476,104900.0,104890.0,0.23653475]
[1737306295616,0.21450476,104900.0,104890.0,0.23653492]
[1737306295916,0.57530476,104900.0,104890.0,0.23653492]
[1737306296109,0.57530476,104900.0,104890.0,0.22877444]
[1737306296314,0.57530476,104900.0,104890.0,0.23175939]
[1737306297506,0.57530476,104900.0,104890.0,0.22877444]
[1737306297702,0.57530476,104900.0,104890.0,0.23175934]
[1737306299517,0.57530476,104900.0,104890.0,0.23175936]
[1737306301220,0.11431322,104900.0,104890.0,0.69275583]
[1737306301421,0.11431322,104900.0,104890.0,0.7094699]
[1737306301623,0.11431322,104900.0,104890.0,0.70946961]
[1737306301823,0.11431322,104900.0,104890.0,0.74826905]
[1737306302322,0.06001322,104910.0,104890.0,1.1132941]
[1737306302521,0.06001322,104910.0,104900.0,0.52929154]
[1737306302721,0.00571322,104910.0,104900.0,0.54421469]
[1737306303125,0.14304664,104920.0,104910.0,0.047724]
[1737306303311,0.14304664,104920.0,104910.0,0.41150885]
[1737306303510,0.19076564,104920.0,104910.0,0.41150806]
[1737306303720,0.047719,104920.0,104910.0,0.41150806]
[1737306304124,0.10018254,104920.0,104910.0,0.41150806]
[1737306304518,0.047719,104920.0,104910.0,0.36378406]
[1737306304718,0.047719,104920.0,104910.0,0.41150806]
[1737306305017,0.047719,104920.0,104910.0,0.64013798]
[1737306305418,0.047719,104920.0,104910.0,0.67363798]
[1737306309543,0.047719,104920.0,104910.0,0.67841258]
[1737306309831,0.10018254,104920.0,104910.0,0.26511399]
[1737306310129,0.46098254,104920.0,104910.0,0.26511399]
[1737306311031,0.46098254,104920.0,104910.0,0.23161399]